bitfinex/quotes_ETHUSD_20260203
["timestamp","ask_amount","ask_price","bid_price","bid_amount"]
[1770134691422,0.913,2294.9,2293.8,1.08987331]
[1770134692203,0.93473488,2294.9,2293.7,1.08991797]
[1770134692527,0.02173488,2294.7,2293.5,1.09003375]
[1770134692692,0.82336018,2294.7,2293.5,1.09003375]
[1770134692893,1.08951451,2294.6,2293.7,1.08993443]
[1770134693495,1.08951451,2294.6,2293.6,1.08996223]
[1770134693706,1.08951451,2294.6,2293.6,1.08997436]
[1770134694016,1.08951451,2294.6,2293.8,1.08986258]
[1770134694795,1.08951451,2294.6,2293.9,1.08984354]
[1770134695001,1.08948786,2294.7,2294.0,1.13000711]
[1770134695208,1.08948786,2294.7,2294.0,1.13004178]
[1770134695410,1.19162969,2295.2,2294.0,1.13004178]
[1770134695729,1.19162969,2295.2,2294.1,0.54893191]
[1770134695730,2.00222969,2295.2,2294.1,0.54893191]
[1770134696293,1.08908734,2295.5,2294.1,12.72298568]
[1770134696499,1.08999867,2295.9,2294.5,12.19578865]
[1770134696724,1.08999867,2295.9,2294.1,0.57066679]
[1770134696725,0.02173488,2295.2,2294.1,0.54893191]
[1770134697246,1.08932461,2295.0,2294.0,1.13003822]
[1770134697526,1.08932461,2295.0,2294.0,1.13001659]
[1770134697706,1.08932461,2295.0,2294.0,0.04024463]
[1770134697911,1.08932461,2295.0,2294.1,1.08974725]
[1770134698226,1.08932461,2295.0,2294.0,0.04024463]
[1770134698394,0.63596231,2294.9,2294.0,0.04024463]
[1770134699011,1.08941955,2294.8,2294.0,1.13003731]
[1770134699326,1.08941955,2294.8,2294.0,0.04024463]
[1770134699728,1.08941955,2294.8,2294.0,1.1300286]
[1770134699923,1.08940886,2294.9,2294.0,1.1300286]
[1770134700105,1.08940886,2294.9,2294.1,0.54892691]
[1770134700314,1.08940886,2294.9,2294.0,1.13004139]
[1770134700517,1.08940886,2294.9,2294.0,1.13003945]
[1770134700727,5.27048834,2295.1,2294.0,13.30409322]
[1770134700728,2.00228449,2295.1,2294.0,13.30409322]
[1770134701132,1.1702863,2295.9,2294.3,0.02173488]
[1770134701334,0.0011,2295.9,2294.7,12.17405377]
[1770134701634,0.0011,2295.4,2294.4,0.913]
[1770134701831,0.0011,2295.4,2294.3,0.001]
[1770134702434,0.0011,2295.4,2294.3,12.17505377]
[1770134702600,0.0011,2295.4,2294.3,0.001]
[1770134703222,0.54792716,2295.4,2294.3,0.001]
[1770134703635,0.02173488,2295.3,2294.3,0.001]
[1770134703805,0.02173488,2295.2,2294.3,0.001]
[1770134704005,0.02173488,2295.1,2294.3,0.001]
[1770134704210,0.93473488,2295.1,2294.3,0.001]
[1770134704436,0.02173488,2294.8,2294.0,0.04024463]
[1770134704637,0.93473488,2295.1,2294.0,0.04024463]
[1770134704638,2.0821863,2295.1,2294.0,0.04024463]
[1770134704936,1.1691863,2295.2,2294.0,1.13004248]
[1770134705140,1.08918224,2295.3,2294.0,13.30409625]
[1770134706042,0.0011,2295.4,2294.0,13.30409625]
[1770134706218,0.0011,2295.4,2294.4,12.17405377]
[1770134706419,0.0011,2295.4,2294.5,13.39363264]
[1770134706738,1.09000003,2295.9,2294.5,13.41536752]
[1770134706909,1.09000003,2295.9,2294.5,13.39363264]
[1770134707110,0.0011,2295.9,2294.6,1.08951451]
[1770134707337,0.02173488,2295.5,2294.5,1.21957887]
[1770134707510,14.01293735,2295.7,2294.5,1.08955898]
[1770134707711,0.02173488,2295.8,2294.5,1.08955898]
[1770134707712,1.1691863,2295.8,2294.5,1.08955898]
[1770134708036,1.1702863,2295.9,2294.5,1.08955898]
[1770134708207,0.02173488,2295.7,2294.5,1.08955898]
[1770134708416,0.02173488,2295.7,2294.4,1.08957862]
[1770134708641,0.02173488,2295.6,2294.5,0.54480605]
[1770134708958,12.94615105,2295.6,2294.5,0.54480605]
[1770134709253,1.08918224,2295.3,2294.0,0.04024463]
[1770134709431,2.25830404,2295.5,2294.5,1.0895549]
[1770134709608,1.08911774,2295.5,2294.5,1.0895549]
[1770134710621,4.35596332,2295.8,2294.5,1.0895549]
[1770134711313,1.09004503,2295.9,2294.4,16.53230175]
[1770134711646,1.09004503,2295.9,2294.5,14.26314644]
[1770134712565,1.09004503,2295.9,2294.5,2.08909267]
[1770134712713,0.02173488,2295.4,2294.4,1.08960948]
[1770134713117,1.08918224,2295.3,2294.2,1.08970447]
[1770134713663,0.02173488,2295.2,2294.0,0.04024463]
[1770134713815,0.12413488,2295.2,2294.0,0.04024463]
[1770134714016,0.02173488,2294.7,2294.0,0.04024463]
[1770134714248,0.02173488,2294.7,2293.5,1.09000096]
[1770134714466,0.02173488,2294.7,2293.6,1.63500838]
[1770134714615,1.1691863,2294.8,2293.7,1.08990774]
[1770134714815,1.19092118,2294.8,2293.7,1.08990774]
[1770134715014,1.19092118,2294.8,2293.6,1.63497989]
[1770134715215,1.08946703,2294.7,2293.1,1.0902272]
[1770134715811,1.08940649,2294.9,2294.2,0.001]
[1770134717550,1.19092118,2294.8,2294.0,0.001]
[1770134717725,1.1691863,2294.7,2294.0,0.001]
[1770134717921,1.1691863,2294.7,2293.1,12.17405377]
[1770134717922,1.1691863,2294.4,2292.9,4.3612134]
[1770134718122,1.1691863,2294.4,2293.0,1.64619045]
[1770134718123,12.84375105,2294.2,2293.0,1.64619045]
[1770134718322,1.19092118,2294.3,2293.3,1.09009893]
[1770134718323,1.1691863,2294.3,2293.3,1.09009893]
[1770134718528,1.1691863,2294.5,2293.5,1.09003003]
[1770134718723,12.92441617,2294.6,2293.5,1.09003003]
[1770134718929,12.82201617,2294.6,2293.5,1.09003003]
[1770134719123,1.17223837,2294.8,2293.6,0.54501783]
[1770134719352,4.35768576,2294.8,2293.7,1.08994201]
[1770134719655,1.17223837,2295.1,2293.7,13.26399578]
[1770134719822,1.08922115,2295.3,2293.9,12.17405377]
[1770134720133,1.08906144,2295.6,2294.2,12.19578865]
[1770134720334,0.0011,2295.7,2294.4,12.6828998]
[1770134720535,1.0901082,2295.7,2294.4,12.6828998]
[1770134720717,0.0011,2295.7,2294.4,12.6828998]
[1770134720919,1.09011803,2295.7,2294.5,13.93162839]
[1770134721453,0.0011,2295.7,2294.6,1.08951451]
[1770134723147,0.0011,2295.7,2294.6,13.75067943]
[1770134723482,0.0011,2295.7,2294.5,5.62852151]
[1770134723483,0.02173488,2295.6,2294.5,2.36002038]
[1770134723634,0.02173488,2295.6,2294.5,1.08955691]
[1770134723817,0.02173488,2295.6,2294.3,1.08962972]
[1770134724148,11.82916447,2295.4,2294.2,1.08969212]
[1770134724325,11.82916447,2295.4,2294.2,1.32061922]
[1770134724644,11.82916447,2295.4,2294.2,1.32062792]
[1770134724820,1.17223837,2295.6,2294.6,1.08948062]
[1770134725020,0.1035,2295.7,2294.6,1.08948062]
[1770134725231,1.0890399,2295.6,2294.3,4.35859272]
[1770134725432,0.67209379,2295.5,2294.4,0.56791768]
[1770134726823,1.0890399,2295.6,2294.4,0.56791768]
[1770134727453,12.91820437,2295.6,2294.4,0.56791768]
[1770134727665,0.12413488,2295.0,2293.6,1.08995705]
[1770134727821,11.82916447,2294.7,2293.0,1.25633056]
[1770134728021,0.02173488,2294.6,2293.4,1.09006039]
[1770134728259,0.02173488,2294.6,2293.3,1.09009738]
[1770134728260,11.82916447,2294.5,2293.3,1.09009738]
[1770134728477,11.82916447,2294.3,2293.1,0.28079371]
[1770134728628,11.82916447,2294.2,2293.1,0.28079371]
[1770134728825,11.82916447,2294.2,2293.1,1.37101259]
[1770134728826,12.74216447,2294.2,2293.1,1.37101259]
[1770134729129,12.74216447,2294.2,2293.2,0.58410378]
[1770134729329,12.74216447,2294.2,2293.1,0.28079371]
[1770134729330,1.08975197,2294.1,2293.1,0.28079371]
[1770134729542,14.06941993,2294.1,2293.0,1.1991976]
[1770134729719,12.89718156,2294.1,2293.1,1.09020342]
[1770134729918,12.89718156,2294.1,2293.0,4.46991768]
[1770134729919,14.19355481,2294.1,2294.0,0.001]
[1770134730122,14.19355481,2294.1,2293.0,0.1089268]
[1770134730123,13.02131644,2294.1,2293.0,0.1089268]
[1770134730319,12.99958156,2294.1,2293.0,0.1089268]
[1770134730561,1.08975197,2294.1,2293.1,1.09021582]
[1770134730938,2.00273489,2294.2,2293.1,1.09021582]
[1770134731254,1.17223837,2294.8,2293.1,13.75138074]
[1770134731419,1.08945558,2294.8,2293.3,12.6828998]
[1770134731624,1.08945558,2294.8,2293.4,0.914]
[1770134731840,1.08945558,2294.8,2293.5,1.35968998]
[1770134732044,11.82916447,2294.7,2293.5,1.35968998]
[1770134732249,0.02173488,2294.4,2293.1,1.09021582]
[1770134732553,0.12413488,2294.3,2293.1,1.09021582]
[1770134732729,0.914,2294.2,2293.1,1.09021582]
[1770134736655,1.08941955,2294.8,2293.1,13.79160962]
[1770134736869,1.08930553,2295.1,2293.5,12.6828998]
[1770134737156,1.08930553,2295.1,2293.6,0.914]
[1770134737654,0.914,2295.3,2293.6,13.57516492]
[1770134737863,0.0011,2295.4,2294.3,12.6828998]
[1770134738043,0.0011,2295.6,2294.6,12.66116492]
[1770134738230,0.30267231,2296.3,2295.0,0.02173488]
[1770134738430,4.355211,2296.2,2295.1,2.00324876]
[1770134738658,12.27442792,2296.1,2295.1,2.00327259]
[1770134738837,0.46699833,2296.1,2295.1,2.00326753]
[1770134739173,12.27442792,2296.1,2295.1,2.00326753]
[1770134739343,0.46699833,2296.1,2295.1,2.00326753]
[1770134739543,0.0011,2296.1,2295.1,2.00326753]
[1770134741031,11.80852959,2296.1,2294.8,0.914]
[1770134741232,0.02173488,2295.6,2293.8,12.66116492]
[1770134741432,0.02173488,2295.5,2294.5,1.08953278]
[1770134741632,0.02173488,2295.3,2294.3,1.08962373]
[1770134741872,0.02173488,2295.0,2293.9,1.08984475]
[1770134742046,0.02173488,2295.1,2294.0,1.08978425]
[1770134742233,0.02173488,2295.0,2294.0,1.08978425]
[1770134742450,1.08941955,2294.8,2293.5,3.49846545]
[1770134742650,1.08941955,2294.8,2293.6,0.34984655]
[1770134742855,1.08940293,2294.9,2293.6,0.34984655]
[1770134743044,1.08936076,2295.0,2293.6,0.34984655]
[1770134743562,11.82916447,2294.7,2293.6,0.34984655]
[1770134743764,0.02173488,2294.9,2293.6,0.34984655]
[1770134743959,1.08936076,2295.0,2293.6,0.34984655]
[1770134744556,4.35716556,2295.1,2293.7,1.08994201]
[1770134746278,1.08927715,2295.1,2293.7,1.08994201]
[1770134746476,2.00320688,2295.3,2293.7,13.75110693]
[1770134746677,1.08897386,2295.8,2294.0,12.6828998]
[1770134746870,1.08897386,2295.8,2294.1,13.5968998]
[1770134747069,1.08897386,2295.8,2294.2,12.89473522]
[1770134747280,0.9151,2295.9,2294.3,12.6828998]
[1770134747467,0.9151,2295.9,2294.4,13.9767203]
[1770134747781,0.02173488,2295.7,2294.4,1.2938205]
[1770134747950,11.82916447,2295.8,2294.1,13.57516492]
[1770134748354,2.00400204,2295.9,2294.1,13.57516492]
[1770134748682,0.0011,2295.9,2294.8,12.66116492]
[1770134748881,1.08999808,2295.9,2294.9,2.18228998]
[1770134749081,1.08999808,2295.9,2294.9,0.914]
[1770134749484,0.0011,2295.9,2294.9,0.914]
[1770134749787,1.08999932,2295.9,2294.9,0.914]
[1770134750656,0.0011,2295.9,2295.0,1.08932461]
[1770134752252,12.29359736,2295.8,2294.6,1.08948985]
[1770134752484,0.02173488,2295.6,2294.6,0.54476078]
[1770134752661,0.02173488,2295.3,2294.2,2.00266991]
[1770134753068,1.11086967,2295.4,2294.2,2.00266991]
[1770134753283,0.54891437,2295.3,2294.3,0.63615654]
[1770134753490,2.00197734,2295.8,2294.3,0.63615654]
[1770134754186,1.09004463,2295.9,2294.3,12.67657844]
[1770134754484,1.09001643,2295.9,2294.4,0.2335703]
[1770134754688,0.0011,2295.9,2294.5,1.08956199]
[1770134754991,0.0011,2295.9,2294.6,0.544781]
[1770134755769,0.0011,2295.9,2294.7,12.29572708]
[1770134756095,0.0011,2295.9,2295.0,0.02173488]
[1770134756265,0.0011,2296.1,2295.0,12.06215678]
[1770134756892,0.0011,2296.1,2295.1,1.08927715]
[1770134757085,0.0011,2296.1,2295.2,1.75085426]
[1770134757710,0.0011,2296.6,2295.5,12.06215678]
[1770134757910,0.0011,2296.9,2295.5,12.06215678]
[1770134757911,0.0011,2296.9,2295.8,12.06215678]
[1770134758278,0.0011,2296.9,2295.8,12.0404219]
[1770134758806,0.0011,2296.9,2295.9,1.0888976]
[1770134759115,0.0011,2297.1,2296.0,1.83755022]
[1770134759706,0.0011,2297.1,2295.9,1.0888976]
[1770134760507,11.77527194,2296.9,2295.6,0.913]
[1770134760685,0.1035,2297.1,2295.8,1.08893832]
[1770134760880,0.1035,2297.1,2295.2,1.08922969]
[1770134760881,11.77527194,2296.7,2295.2,1.08922969]
[1770134761083,11.77527194,2296.3,2294.8,1.08938437]
[1770134761390,0.02173488,2296.0,2294.9,1.08936773]
[1770134761796,0.02173488,2295.9,2294.6,0.544781]
[1770134762014,11.77527194,2295.6,2294.5,1.0905573]
[1770134762328,0.02173488,2295.3,2294.5,0.001]
[1770134762532,0.02173488,2295.3,2293.5,6.94446569]
[1770134762533,0.02173488,2295.0,2293.5,6.94446569]
[1770134762715,0.02173488,2295.0,2293.5,2.58446545]
[1770134762716,11.77527194,2294.7,2293.5,2.58446545]
[1770134762895,1.08960948,2294.4,2293.3,0.001]
[1770134763098,0.02173488,2294.1,2293.1,0.018494]
[1770134763416,0.02173488,2294.0,2293.1,0.018494]
[1770134763721,0.02173488,2293.9,2293.1,0.018494]
[1770134764222,0.1024,2294.3,2293.2,1.09017464]
[1770134764427,0.65961823,2294.3,2293.1,1.10869454]
[1770134764719,0.65961823,2294.3,2293.1,0.018494]
[1770134764720,12.43489017,2294.3,2293.1,0.018494]
[1770134764927,1.08970447,2294.2,2293.1,1.1086923]
[1770134765609,1.64689458,2294.3,2293.1,1.1086923]
[1770134765928,1.08967216,2294.3,2293.1,1.1086923]
[1770134766128,1.08964492,2294.4,2293.1,1.1086923]
[1770134766749,12.86491686,2294.4,2293.1,0.018494]
[1770134767023,11.75353706,2294.0,2293.1,0.018494]
[1770134767205,11.77527194,2294.0,2293.1,0.018494]
[1770134767409,0.913,2293.9,2293.1,0.018494]
[1770134767812,0.913,2293.9,2293.1,1.10871449]
[1770134768449,1.08959434,2294.5,2293.1,1.10871449]
[1770134768610,1.08959434,2294.5,2293.2,0.56004586]
[1770134768965,1.31417755,2295.4,2293.9,0.02173488]
[1770134769109,2.40331611,2295.4,2294.0,0.913]
[1770134769457,0.67598553,2295.3,2294.0,0.913]
[1770134769735,1.31417755,2295.4,2294.2,0.02173488]
[1770134770216,0.02173488,2295.3,2293.6,12.0404219]
[1770134770418,11.77527194,2295.3,2293.7,0.913]
[1770134770617,11.77527194,2295.1,2293.7,0.913]
[1770134770918,11.77527194,2295.1,2293.8,1.08989449]
[1770134770919,1.08937208,2294.9,2293.8,1.08989449]
[1770134771434,0.913,2295.0,2293.8,1.08989449]
[1770134771804,2.00233469,2295.0,2293.8,1.08989449]
[1770134772026,2.00233469,2295.0,2293.9,0.63626532]
[1770134772027,2.02406957,2295.0,2293.9,0.63626532]
[1770134772226,2.00233469,2295.0,2293.7,2.00294035]
[1770134772416,0.913,2295.0,2293.7,2.00294035]
[1770134772620,2.00233246,2295.0,2293.7,2.00294035]
[1770134772817,0.913,2295.0,2293.7,2.00294035]
[1770134773038,0.913,2295.0,2293.8,0.63627084]
[1770134773428,2.0023289,2295.0,2293.8,0.63627084]
[1770134773830,0.02173488,2294.9,2293.8,0.63627084]
[1770134774138,0.02173488,2294.9,2293.7,1.08994035]
[1770134774341,2.02406378,2295.0,2293.7,1.08994035]
[1770134774539,0.02173488,2294.9,2293.6,1.08996349]
[1770134774743,0.02173488,2294.9,2293.7,1.08993945]
[1770134775141,1.08941955,2294.8,2293.4,1.09008459]
[1770134775327,0.54688326,2294.7,2293.5,0.63644229]
[1770134776041,1.0893904,2294.9,2293.5,0.63644229]
[1770134776845,2.0023579,2295.0,2293.5,0.63644229]
[1770134777419,11.77527194,2294.9,2293.6,1.08998953]
[1770134777721,2.02409278,2295.0,2293.6,1.08998953]
[1770134777722,2.0023579,2295.0,2293.6,1.08998953]
[1770134778978,2.00233096,2295.0,2293.7,0.02173488]
[1770134779122,11.85593706,2294.9,2293.3,0.001]
[1770134779317,11.85593706,2294.9,2292.3,13.13102958]
[1770134779318,1.08975197,2294.1,2292.3,13.13102958]
[1770134779517,0.1024,2293.9,2292.4,2.22927645]
[1770134779818,0.02173488,2293.5,2292.1,0.001]
[1770134780058,0.02173488,2293.4,2292.1,0.001]
[1770134780255,11.75353706,2293.5,2292.2,0.914]
[1770134780599,11.75353706,2293.5,2292.1,0.001]
[1770134780600,0.02173488,2293.2,2292.1,0.001]
[1770134780890,0.02173488,2293.0,2292.1,0.001]
[1770134781083,0.02173488,2292.9,2292.1,0.001]
[1770134781593,0.02173488,2292.5,2291.0,1.09118744]
[1770134781807,0.02173488,2292.3,2290.8,1.09131769]
[1770134782096,0.1024,2292.6,2291.3,1.09104097]
[1770134782264,1.39463266,2292.6,2291.4,0.54555435]
[1770134783063,1.39463266,2292.6,2291.3,1.09107369]
[1770134783263,1.41636754,2292.6,2291.2,1.09110152]
[1770134783490,0.02173488,2292.3,2290.5,4.38743257]
[1770134783701,0.02173488,2292.3,2290.4,0.02173488]
[1770134783702,0.02173488,2292.2,2290.8,1.09131855]
[1770134783897,0.02173488,2292.1,2290.8,1.0913197]
[1770134784099,0.02173488,2292.1,2290.6,1.35491675]
[1770134784100,0.02173488,2292.0,2291.1,0.001]
[1770134784461,0.02173488,2291.9,2291.1,0.001]
[1770134784865,0.1024,2292.2,2291.1,0.001]
[1770134785165,1.34884148,2292.2,2291.1,0.001]
[1770134785365,1.09070284,2292.1,2291.1,0.001]
[1770134785578,2.31538698,2292.2,2291.1,0.001]
[1770134786472,0.02173488,2292.1,2291.1,0.001]
[1770134786671,0.02173488,2292.0,2291.1,0.001]
[1770134787091,12.68835211,2291.7,2290.2,4.36638255]
[1770134787261,12.68835211,2291.7,2290.3,0.43663826]
[1770134787465,1.09094082,2291.6,2290.2,1.09160771]
[1770134788404,0.02173488,2291.3,2289.7,0.29007622]
[1770134788573,0.02173488,2291.2,2289.9,1.09173433]
[1770134788772,0.02173488,2291.2,2290.0,1.09170254]
[1770134788971,0.02173488,2291.2,2290.0,1.72897812]
[1770134789201,12.71008699,2291.4,2290.1,1.09165337]
[1770134789404,12.71008699,2291.4,2290.0,5.00407564]
[1770134789405,1.11286616,2291.2,2290.0,1.72894459]
[1770134789622,0.02173488,2291.1,2289.7,0.29007622]
[1770134790108,0.02173488,2291.0,2289.8,4.36718701]
[1770134790422,0.02173488,2291.1,2289.9,1.09172162]
[1770134790626,1.09113128,2291.2,2290.0,1.09169211]
[1770134790912,1.09113128,2291.2,2290.1,0.54585043]
[1770134791401,0.02173488,2291.1,2290.1,0.54585043]
[1770134791600,1.11286616,2291.2,2289.9,1.09173687]
[1770134791794,0.1024,2291.1,2289.8,1.09176006]
[1770134792100,0.1024,2291.1,2289.8,1.0917641]
[1770134792299,0.12413488,2291.1,2289.7,0.29007622]
[1770134792556,0.02173488,2291.0,2289.7,0.29007622]
[1770134792710,0.12413488,2290.8,2289.6,1.09186274]
[1770134793050,1.47939568,2290.8,2289.8,1.09179327]
[1770134793350,0.02173488,2290.7,2289.2,4.36831358]
[1770134793501,1.11319962,2290.5,2289.0,1.09217999]
[1770134793703,1.09139731,2290.7,2289.0,13.11687832]
[1770134793934,1.09139731,2290.7,2289.2,0.02173488]
[1770134794299,1.09139731,2290.7,2289.2,0.915]
[1770134794527,1.09139731,2290.7,2289.1,13.77544908]
[1770134794727,13.60235211,2290.9,2289.2,0.915]
[1770134794925,4.3650203,2291.0,2289.4,0.02173488]
[1770134795127,4.3650203,2291.0,2289.3,0.02173488]
[1770134795128,0.55586468,2290.9,2289.3,0.02173488]
[1770134795301,0.1024,2290.6,2289.1,1.75075075]
[1770134795503,1.09146474,2290.5,2288.9,4.36889435]
[1770134795908,13.77981685,2290.5,2288.9,4.36889435]
[1770134796114,13.77981685,2290.5,2288.9,4.39062923]
[1770134796336,12.79075211,2290.4,2288.8,1.09224775]
[1770134796506,14.07874728,2290.3,2289.5,0.001]
[1770134797000,1.39039517,2290.3,2289.5,0.001]
[1770134797204,1.09146474,2290.5,2289.5,0.001]
[1770134797534,2.0064333,2290.6,2289.6,1.09189378]
[1770134798037,2.0064333,2290.6,2289.5,5.28357512]
[1770134798038,14.71652029,2290.6,2289.5,0.001]
[1770134798233,14.71652029,2290.6,2289.3,0.001]
[1770134798234,0.02173488,2290.3,2289.3,0.001]
[1770134798431,12.71008699,2290.3,2289.3,0.001]
[1770134798609,1.27318219,2290.2,2289.3,0.001]
[1770134799437,1.27318219,2290.2,2288.5,1.20129768]
[1770134799438,1.09175073,2289.9,2288.5,1.20129768]
[1770134799626,1.09175073,2289.9,2288.6,4.36941304]
[1770134800135,1.09175073,2289.9,2288.6,1.09237088]
[1770134800436,0.915,2289.8,2288.6,1.09237088]
[1770134800632,0.915,2289.8,2288.7,0.55707812]
[1770134801216,0.02173488,2289.7,2288.7,0.55707812]
[1770134801422,0.02173488,2289.6,2288.5,0.1089268]
[1770134801628,1.09194147,2289.5,2288.5,1.20133739]
[1770134801935,0.02173488,2289.4,2288.5,0.1089268]
[1770134802136,1.11367635,2289.5,2288.5,1.2013209]
[1770134802437,1.09194147,2289.5,2288.5,1.09241289]
[1770134802806,1.09194147,2289.5,2288.4,1.09243735]
[1770134803008,0.54597074,2289.4,2288.5,1.63865711]
[1770134803336,1.09194147,2289.5,2288.5,0.54624227]
[1770134803546,4.36758528,2289.6,2288.0,1.09265734]
[1770134804052,1.09189378,2289.6,2288.2,12.02469833]
[1770134804208,1.09185769,2289.7,2288.3,12.96143321]
[1770134804404,13.7802098,2289.7,2288.3,0.915]
[1770134804611,1.33516838,2289.6,2288.0,1.09265734]
[1770134805525,14.02352049,2289.6,2288.0,1.09265734]
[1770134805720,13.80202846,2289.5,2288.0,1.09265734]
[1770134805909,1.09194147,2289.5,2288.0,1.09265734]
[1770134806109,1.09194147,2289.5,2288.0,13.13909055]
[1770134806425,0.54597074,2289.4,2288.1,2.75964548]
[1770134806627,0.54597074,2289.4,2288.1,0.915]
[1770134806950,0.54597074,2289.4,2288.1,12.93969833]
[1770134807249,1.09165538,2290.1,2288.5,0.02173488]
[1770134807416,12.71008699,2289.8,2288.0,1.09265734]
[1770134807637,13.80198077,2289.6,2288.0,1.09265734]
[1770134807841,1.89103306,2289.5,2288.1,0.54632867]
[1770134808161,0.02173488,2289.3,2288.1,0.54632867]
[1770134808339,0.02173488,2289.4,2288.1,0.54632867]
[1770134808535,12.79075211,2289.5,2288.1,0.54632867]
[1770134809664,1.09198916,2289.4,2288.2,1.09256183]
[1770134810046,1.09198916,2289.4,2288.3,0.001]
[1770134810248,1.81482979,2289.3,2288.3,0.001]
[1770134811258,1.09198916,2289.4,2288.3,0.001]
[1770134811458,0.1024,2289.5,2288.3,0.001]
[1770134811872,1.09189378,2289.6,2288.3,0.001]
[1770134812044,1.09189378,2289.6,2288.3,12.57371929]
[1770134812239,1.09189378,2289.6,2288.4,0.915]
[1770134812447,4.36679463,2290.1,2288.4,0.915]
[1770134812448,1.09141709,2290.6,2288.8,0.02173488]
[1770134812697,0.916,2290.5,2288.8,0.02173488]
[1770134812847,0.1024,2290.4,2288.8,0.02173488]
[1770134813048,13.58136779,2290.5,2288.5,1.34887193]
[1770134813352,0.1024,2290.3,2288.6,0.916]
[1770134813553,12.38855302,2290.1,2288.7,0.22866068]
[1770134813746,12.38855302,2289.2,2288.1,0.54632867]
[1770134813943,18.98531288,2288.8,2287.0,12.85382955]
[1770134814144,0.12413488,2288.7,2287.5,1.09285652]
[1770134814379,2.56117311,2288.7,2287.6,1.09280838]
[1770134814550,2.01334478,2288.7,2287.7,1.09279247]
[1770134814877,2.01334478,2288.7,2287.4,1.09292138]
[1770134815176,2.01334478,2288.7,2287.2,4.37210915]
[1770134815349,1.44018978,2288.6,2287.4,1.09292147]
[1770134815756,1.44018978,2288.6,2287.4,1.09293747]
[1770134815965,0.54782833,2289.0,2287.6,0.02173488]
[1770134815966,4.47131083,2289.0,2287.6,0.02173488]
[1770134816275,4.47131083,2289.0,2287.7,0.02173488]
[1770134816775,1.09186937,2289.7,2288.5,0.02173488]
[1770134816978,1.09186937,2289.7,2288.4,0.02173488]
[1770134817175,0.54590968,2289.6,2288.1,0.93773488]
[1770134817379,0.02173488,2289.1,2287.7,12.85382955]
[1770134817600,0.93773488,2289.0,2287.7,12.85382955]
[1770134817801,0.916,2289.0,2287.7,12.85382955]
[1770134818010,0.1024,2288.8,2287.7,12.85382955]
[1770134818300,0.02173488,2288.7,2287.7,12.85382955]
[1770134818500,13.70847008,2288.8,2287.7,12.85382955]
[1770134818891,13.13890687,2288.8,2287.7,12.85382955]
[1770134819084,13.13890687,2288.8,2287.3,1.53235001]
[1770134819288,13.6867352,2288.8,2287.0,0.02173488]
[1770134819501,13.6867352,2288.8,2286.9,1.09315678]
[1770134819502,13.70847008,2288.8,2286.9,1.09315678]
[1770134819705,0.1024,2288.6,2287.0,1.09313213]
[1770134819998,13.48097163,2288.5,2286.8,0.02173488]
[1770134820299,12.49095302,2288.2,2286.7,1.09324166]
[1770134820616,0.916,2288.1,2286.8,0.54665317]
[1770134820771,0.916,2288.1,2286.9,12.87556443]
[1770134820970,0.916,2288.1,2287.0,0.02173488]
[1770134821207,1.09241861,2288.5,2287.0,0.02173488]
[1770134821381,2.00841861,2288.5,2286.8,1.09322569]
[1770134821578,0.54782833,2288.7,2287.4,0.02173488]
[1770134821781,0.64795385,2288.8,2287.4,0.02173488]
[1770134821782,1.09230911,2288.8,2287.7,0.02173488]
[1770134822112,14.38621648,2289.3,2287.5,1.09286463]
[1770134822401,0.54782833,2288.8,2287.5,1.09289531]
[1770134822604,0.916,2288.8,2287.5,1.09289531]
[1770134822798,0.916,2288.8,2287.4,1.09291578]
[1770134823099,0.916,2288.8,2287.4,1.09294172]
[1770134823303,0.916,2288.8,2287.5,0.54649071]
[1770134823599,0.916,2288.8,2287.1,12.85382955]
[1770134823814,0.02173488,2288.3,2286.6,13.94712014]
[1770134823974,1.09256183,2288.2,2286.6,13.94715192]
[1770134824174,1.09256183,2288.2,2287.0,0.02173488]
[1770134824379,1.09254071,2288.3,2287.1,0.02173488]
[1770134824798,1.09237088,2288.6,2287.1,0.02173488]
[1770134824998,1.09237088,2288.6,2287.3,0.02173488]
[1770134825403,1.09234075,2288.7,2287.5,12.85382955]
[1770134825716,1.09234075,2288.7,2287.3,0.02173488]
[1770134825717,1.09234075,2288.7,2287.6,1.37915644]
[1770134825883,1.09234075,2288.7,2287.4,1.09294395]
[1770134826776,1.09234075,2288.7,2287.2,1.09300212]
[1770134826979,1.09234075,2288.7,2287.3,1.09299048]
[1770134826980,1.11407563,2288.7,2287.3,1.09299048]
[1770134827510,1.09232315,2288.7,2287.3,13.96855491]
[1770134827696,0.0011,2289.2,2287.5,0.02173488]
[1770134828023,0.0011,2289.2,2288.0,1.09265734]
[1770134828181,0.0011,2289.2,2287.9,17.2461938]
[1770134828182,0.0011,2289.2,2287.9,1.09268245]
[1770134828508,0.0011,2289.2,2287.9,13.946512]
[1770134828708,0.0011,2289.2,2287.8,1.09273471]
[1770134828920,0.02173488,2288.8,2287.4,1.92565948]
[1770134829213,1.29651663,2288.8,2287.4,1.09294194]
[1770134829777,1.27478175,2288.8,2287.4,1.09293856]
[1770134829985,1.09232315,2288.7,2287.1,1.09308731]
[1770134830188,1.09232315,2288.7,2287.3,0.02173488]
[1770134830520,1.09232315,2288.7,2287.1,1.09308731]
[1770134830685,0.54833506,2288.6,2287.2,0.54666087]
[1770134831186,0.02173488,2288.5,2287.1,1.09308731]
[1770134831705,1.46433506,2288.6,2287.1,1.09308731]
[1770134831890,1.09241861,2288.5,2287.1,13.94691686]
[1770134832091,1.09241861,2288.5,2287.1,1.09308731]
[1770134832294,13.50270651,2288.5,2287.0,0.001]
[1770134832488,0.02173488,2288.2,2287.0,0.001]
[1770134832685,0.1024,2288.3,2287.1,1.09307434]
[1770134832885,0.1024,2288.3,2287.0,0.001]
[1770134832886,0.02173488,2288.2,2287.0,0.001]
[1770134833315,0.02173488,2288.2,2287.1,1.09308166]
[1770134833517,1.93584509,2288.4,2287.1,1.09308166]
[1770134833695,1.09241861,2288.5,2287.2,0.54664421]
[1770134834120,1.09241861,2288.5,2287.3,1.09299173]
[1770134835298,2.55671923,2288.6,2287.3,1.09299173]
[1770134835497,2.00838417,2288.6,2287.3,1.09299173]
[1770134836216,0.02173488,2288.5,2287.2,1.6396549]
[1770134836397,0.02173488,2288.5,2287.2,1.09300826]
[1770134836719,21.00539838,2288.6,2287.2,1.09300826]
[1770134837021,8.59511048,2288.6,2287.2,1.09300826]
[1770134837521,2.00838417,2288.6,2287.2,1.09300826]
[1770134838018,14.41867207,2288.6,2287.2,1.09302531]
[1770134838220,1.09246635,2288.4,2287.2,1.63965002]
[1770134838522,1.09246635,2288.4,2287.4,0.001]
[1770134838720,0.0011,2288.4,2287.4,0.001]
[1770134839598,0.0011,2288.4,2287.5,0.916]